[Event "WYCC 2018 O14"]
[Site "Halkidiki"]
[Date "2018.10.27"]
[Round "8"]
[White "Gavriil, Odysseas-Panagiotis"]
[Black "Vettese, Nicholas"]
[Result "1/2-1/2"]
[ECO "D90"]
[WhiteElo "2009"]
[BlackElo "2338"]
[Annotator "NA"]
[PlyCount "72"]
[EventDate "2018.10.20"]
[EventType "swiss"]
[EventCountry "GRE"]
[SourceTitle "playchess.com"]
[Source "ChessBase"]
[SourceQuality "1"]
[TimeControl "40/5400+30:1800+30"]

1. d4 {[%emt 0:00:00]} Nf6 {[%emt 0:00:00]} 2. c4 {[%emt 0:00:00]} g6 {[%emt 0:00:00]} 3. Nc3 {[%emt 0:00:05]} d5 {[%emt 0:00:00]} 4. Nf3 {[%emt 0:00:24]} Bg7 {[%emt 0:00:02]} 5. h4 {[%emt 0:00:23]} dxc4 {[%emt 0:05:08]} 6. e4 {[%emt 0:00:10]} c5 {[%emt 0:00:38]} 7. d5 {[%emt 0:00:38]} b5 {[%emt 0:03:12]} 8. h5 {[%emt 0:04:20]} b4 {[%emt 0:08:23]} 9. h6 {[%emt 0:08:11]} Bxh6 {[%emt 0:07:20]} 10. Bxh6 {[%emt 0:08:43]} bxc3 {[%emt 0:00:07]} 11. bxc3 Nxe4 12. Qa4+ {[%emt 0:13:46]} Nd7 {[%emt 0:02:30]} 13. Bxc4 {[%emt 0:01:38]} Qb6 {[%emt 0:15:33]} 14. O-O {[%emt 0:10:43]} g5 {[%emt 0:06:36]} 15. Bg7 {[%emt 0:05:57]} Rg8 {[%emt 0:01:51]} 16. Rfe1 {[%emt 0:11:11]} Qb2 {[%emt 0:09:19]} 17. Rxe4 {[%emt 0:04:14]} Qxa1+ {[%emt 0:00:09]} 18. Re1 {[%emt 0:00:02]} Qxe1+ {[%emt 0:01:30]} 19. Nxe1 {[%emt 0:00:07]} Rxg7 {[%emt 0:00:08]} 20. Nd3 {[%emt 0:02:28]} Kf8 {[%emt 0:05:04]} 21. Qc6 {[%emt 0:05:56]} Nb6 {[%emt 0:02:55]} 22. Qxc5 {[%emt 0:02:33]} Rg6 {[%emt 0:05:36]} 23. Bb5 {[%emt 0:03:46]} Bb7 {[%emt 0:02:35]} 24. Nb4 {[%emt 0:03:29]} Rc8 {[%emt 0:03:48]} 25. Qd4 {[%emt 0:04:05]} Kg8 {[%emt 0:01:11]} 26. c4 {[%emt 0:00:36]} Rf6 {[%emt 0:06:11]} 27. Bc6 {[%emt 0:00:00]} Ba8 {[%emt 0:04:41]} 28. c5 {[%emt 0:04:24]} Rf4 {[%emt 0:00:19]} 29. Qe5 {[%emt 0:02:33]} Rxb4 {[%emt 0:01:40]} 30. Qxg5+ {[%emt 0:01:00]} Kf8 {[%emt 0:01:13]} 31. Qh6+ {[%emt 0:00:31]} Kg8 {[%emt 0:00:07]} 32. Qg5+ {[%emt 0:00:04]} Kf8 {[%emt 0:03:10]} 33. Qh6+ {[%emt 0:00:21]} Kg8 {[%emt 0:00:06]} 34. Qg5+ {[%emt 0:00:04]} Kf8 {[%emt 0:00:07]} 35. Qh6+ {[%emt 0:00:04]} Kg8 {[%emt 0:00:06]} 36. Qg5+ {[%emt 0:00:06]} Kf8 1/2-1/2

[Event "WYCC 2018 O14"]
[Site "Halkidiki"]
[Date "2018.10.27"]
[Round "8"]
[White "Egorov, Mikhail"]
[Black "Krallis, Christos"]
[Result "0-1"]
[ECO "B34"]
[WhiteElo "2006"]
[BlackElo "2139"]
[Annotator "NA"]
[PlyCount "84"]
[EventDate "2018.10.20"]
[EventType "swiss"]
[EventCountry "GRE"]
[SourceTitle "playchess.com"]
[Source "ChessBase"]
[SourceQuality "1"]
[TimeControl "40/5400+30:1800+30"]

1. e4 {[%emt 0:00:00]} c5 {[%emt 0:00:43]} 2. Nc3 {[%emt 0:00:00]} Nc6 {[%emt 0:01:37]} 3. Nge2 {[%emt 0:00:01]} g6 {[%emt 0:00:22]} 4. d4 {[%emt 0:00:06]} cxd4 {[%emt 0:00:03]} 5. Nxd4 {[%emt 0:00:06]} Bg7 {[%emt 0:00:03]} 6. Nb3 {[%emt 0:00:17]} Nf6 {[%emt 0:01:27]} 7. Bc4 {[%emt 0:04:28]} O-O {[%emt 0:01:41]} 8. O-O {[%emt 0:00:13]} d6 {[%emt 0:00:38]} 9. Re1 {[%emt 0:01:00]} Bd7 {[%emt 0:02:45]} 10. Nd5 {[%emt 0:08:19]} Rc8 {[%emt 0:01:29]} 11. Bf1 {[%emt 0:01:13]} Re8 {[%emt 0:06:41]} 12. c3 {[%emt 0:00:53]} Nxd5 {[%emt 0:04:25]} 13. exd5 {[%emt 0:00:24]} Ne5 {[%emt 0:00:16]} 14. Nd4 {[%emt 0:09:59]} Qa5 {[%emt 0:06:03]} 15. Qb3 {[%emt 0:21:18]} b5 {[%emt 0:09:36]} 16. Bxb5 {[%emt 0:08:52]} Rb8 {[%emt 0:04:10]} 17. Bxd7 {[%emt 0:01:48]} Rxb3 {[%emt 0:00:58]} 18. Nxb3 {[%emt 0:00:17]} Qd8 {[%emt 0:00:17]} 19. Bxe8 {[%emt 0:00:30]} Qxe8 {[%emt 0:00:01]} 20. Be3 {[%emt 0:05:39]} Qa8 {[%emt 0:05:24]} 21. Rad1 {[%emt 0:05:54]} Nc4 {[%emt 0:05:15]} 22. Re2 {[%emt 0:01:50]} Nb6 {[%emt 0:08:48]} 23. Bxb6 {[%emt 0:00:55]} axb6 {[%emt 0:00:05]} 24. a3 {[%emt 0:00:39]} Qa4 {[%emt 0:00:10]} 25. Rxe7 {[%emt 0:02:53]} Qxb3 {[%emt 0:00:46]} 26. Re8+ {[%emt 0:00:09]} Bf8 {[%emt 0:00:04]} 27. Rd2 {[%emt 0:00:12]} Qb5 {[%emt 0:02:07]} 28. Ra8 {[%emt 0:05:12]} Kg7 {[%emt 0:01:12]} 29. Ra7 {[%emt 0:02:12]} Kf6 {[%emt 0:01:27]} 30. a4 {[%emt 0:08:23]} Qc4 {[%emt 0:02:49]} 31. f4 {[%emt 0:03:51]} Qc5+ {[%emt 0:03:56]} 32. Rd4 {[%emt 0:00:16]} b5 {[%emt 0:03:06]} 33. Ra5 {[%emt 0:01:16]} Bg7 {[%emt 0:02:08]} 34. g4 Ke7 {[%emt 0:00:27]} 35. Rxb5 {[%emt 0:03:36]} Bxd4+ {[%emt 0:00:07]} 36. Kg2 {[%emt 0:00:16]} Qc4 {[%emt 0:00:59]} 37. cxd4 {[%emt 0:00:00]} Qxa4 {[%emt 0:00:34]} 38. Rb7+ Kf6 {[%emt 0:00:14]} 39. g5+ {[%emt 0:00:29]} Kg7 {[%emt 0:00:04]} 40. h4 {[%emt 0:00:00]} Qxd4 {[%emt 0:00:00]} 41. Re7 {[%emt 0:00:41]} Qxf4 {[%emt 0:00:44]} 42. b4 {[%emt 0:00:13]} Qxh4 {[%emt 0:00:24]} 0-1

[Event "WYCC 2018 O14"]
[Site "Halkidiki"]
[Date "2018.10.27"]
[Round "8"]
[White "Misyura, Ilya"]
[Black "Czopor, Maciej"]
[Result "0-1"]
[ECO "E40"]
[WhiteElo "1967"]
[BlackElo "2219"]
[Annotator "NA"]
[PlyCount "60"]
[EventDate "2018.10.20"]
[EventType "swiss"]
[EventCountry "GRE"]
[SourceTitle "playchess.com"]
[Source "ChessBase"]
[SourceQuality "1"]
[TimeControl "40/5400+30:1800+30"]

1. d4 Nf6 {[%emt 0:00:00]} 2. c4 {[%emt 0:00:00]} e6 {[%emt 0:00:08]} 3. Nc3 {[%emt 0:00:00]} Bb4 {[%emt 0:00:19]} 4. e3 {[%emt 0:00:00]} d5 {[%emt 0:00:53]} 5. Bd3 {[%emt 0:02:51]} e5 {[%emt 0:00:51]} 6. a3 {[%emt 0:10:22]} Bxc3+ {[%emt 0:19:10]} 7. bxc3 {[%emt 0:00:06]} O-O {[%emt 0:12:27]} 8. cxd5 {[%emt 0:14:30]} Qxd5 9. f3 {[%emt 0:05:24]} e4 {[%emt 0:06:45]} 10. c4 {[%emt 0:04:57]} Qg5 {[%emt 0:05:22]} 11. fxe4 {[%emt 0:22:56]} Nxe4 {[%emt 0:01:49]} 12. g3 {[%emt 0:04:27]} Re8 {[%emt 0:04:57]} 13. Ne2 {[%emt 0:06:41]} Bh3 {[%emt 0:14:54]} 14. Qa4 {[%emt 0:03:21]} Nc6 {[%emt 0:04:44]} 15. Nf4 {[%emt 0:04:02]} Nxd4 {[%emt 0:07:52]} 16. Bxe4 {[%emt 0:05:37]} Rxe4 {[%emt 0:00:28]} 17. Kf2 {[%emt 0:01:32]} Nc6 {[%emt 0:02:07]} 18. Ra2 {[%emt 0:02:15]} Be6 {[%emt 0:01:39]} 19. Rb2 {[%emt 0:02:08]} Rxc4 {[%emt 0:06:22]} 20. Qd1 {[%emt 0:02:15]} Rd8 {[%emt 0:00:38]} 21. Qe2 {[%emt 0:00:21]} Qc5 {[%emt 0:00:58]} 22. Rd1 {[%emt 0:02:15]} Rxd1 {[%emt 0:01:07]} 23. Qxd1 {[%emt 0:00:15]} Rxc1 {[%emt 0:00:17]} 24. Nxe6 {[%emt 0:00:19]} Qf5+ {[%emt 0:00:44]} 25. Qf3 {[%emt 0:00:29]} Rf1+ {[%emt 0:00:13]} 26. Kxf1 {[%emt 0:00:21]} Qxf3+ {[%emt 0:00:06]} 27. Rf2 {[%emt 0:00:08]} Qd1+ {[%emt 0:00:11]} 28. Kg2 {[%emt 0:00:06]} fxe6 {[%emt 0:00:08]} 29. a4 {[%emt 0:00:21]} Ne5 {[%emt 0:00:09]} 30. e4 {[%emt 0:00:11]} Ng4 {[%emt 0:00:14]} 0-1

[Event "WYCC 2018 O14"]
[Site "Halkidiki"]
[Date "2018.10.27"]
[Round "8"]
[White "Jurakic, Lukas"]
[Black "Munshi, Aditya"]
[Result "0-1"]
[ECO "B94"]
[WhiteElo "1961"]
[BlackElo "2133"]
[Annotator "NA"]
[PlyCount "88"]
[EventDate "2018.10.20"]
[EventType "swiss"]
[EventCountry "GRE"]
[SourceTitle "playchess.com"]
[Source "ChessBase"]
[SourceQuality "1"]
[TimeControl "40/5400+30:1800+30"]

1. e4 {[%emt 0:00:00]} c5 {[%emt 0:00:00]} 2. Nf3 {[%emt 0:00:00]} d6 {[%emt 0:00:00]} 3. d4 {[%emt 0:00:00]} cxd4 {[%emt 0:00:00]} 4. Nxd4 {[%emt 0:00:00]} Nf6 {[%emt 0:00:02]} 5. Nc3 {[%emt 0:00:11]} a6 {[%emt 0:00:07]} 6. Bg5 {[%emt 0:00:19]} Nbd7 {[%emt 0:00:08]} 7. f4 {[%emt 0:00:21]} Qc7 {[%emt 0:00:07]} 8. Qf3 {[%emt 0:01:17]} b5 {[%emt 0:00:28]} 9. O-O-O {[%emt 0:01:22]} Bb7 {[%emt 0:03:31]} 10. Bd3 {[%emt 0:02:58]} g6 {[%emt 0:02:51]} 11. Nd5 {[%emt 0:08:45]} Nxd5 {[%emt 0:02:08]} 12. exd5 {[%emt 0:00:31]} Bg7 {[%emt 0:00:42]} 13. Nc6 {[%emt 0:04:12]} Nf6 {[%emt 0:12:08]} 14. Rhe1 {[%emt 0:06:15]} Bxc6 {[%emt 0:11:11]} 15. dxc6 {[%emt 0:00:17]} O-O {[%emt 0:01:55]} 16. f5 {[%emt 0:05:04]} Rac8 {[%emt 0:05:06]} 17. Re2 {[%emt 0:07:08]} Qxc6 {[%emt 0:10:26]} 18. Qxc6 {[%emt 0:02:52]} Rxc6 {[%emt 0:05:44]} 19. Rxe7 {[%emt 0:02:06]} gxf5 {[%emt 0:04:41]} 20. Bxf5 {[%emt 0:08:38]} Rc5 {[%emt 0:01:03]} 21. Rf1 {[%emt 0:02:23]} Nd5 {[%emt 0:01:45]} 22. Ra7 {[%emt 0:06:59]} Bd4 {[%emt 0:06:08]} 23. Be7 {[%emt 0:16:07]} Re8 {[%emt 0:17:18]} 24. Re1 {[%emt 0:06:01]} Rxe7 {[%emt 0:05:37]} 25. Rexe7 {[%emt 0:01:01]} Nxe7 {[%emt 0:00:12]} 26. Bxh7+ {[%emt 0:00:42]} Kxh7 {[%emt 0:00:08]} 27. Rxe7 {[%emt 0:00:03]} Kg6 {[%emt 0:00:41]} 28. Re4 {[%emt 0:02:53]} Bf6 {[%emt 0:03:00]} 29. c3 {[%emt 0:01:24]} d5 {[%emt 0:02:36]} 30. Re8 {[%emt 0:01:45]} d4 {[%emt 0:00:36]} 31. Kc2 {[%emt 0:00:49]} dxc3 {[%emt 0:00:10]} 32. b3 {[%emt 0:00:34]} b4 {[%emt 0:01:29]} 33. Rg8+ {[%emt 0:00:53]} Bg7 {[%emt 0:00:07]} 34. Ra8 {[%emt 0:01:05]} Ra5 {[%emt 0:00:14]} 35. Kb1 {[%emt 0:00:26]} Kh7 {[%emt 0:01:12]} 36. Ra7 {[%emt 0:00:55]} Kg6 {[%emt 0:02:19]} 37. Rc7 {[%emt 0:00:49]} Re5 {[%emt 0:01:16]} 38. Rc6+ {[%emt 0:00:36]} Re6 {[%emt 0:00:09]} 39. Rc5 {[%emt 0:00:34]} Re1+ {[%emt 0:00:24]} 40. Kc2 {[%emt 0:00:00]} Re2+ {[%emt 0:00:00]} 41. Kd1 {[%emt 0:00:34]} Rxa2 {[%emt 0:00:39]} 42. Rc4 {[%emt 0:00:27]} Rxg2 {[%emt 0:00:36]} 43. Rxb4 {[%emt 0:00:35]} c2+ {[%emt 0:00:06]} 44. Kc1 {[%emt 0:00:05]} Bh6+ {[%emt 0:00:08]} 0-1

[Event "WYCC 2018 O14"]
[Site "Halkidiki"]
[Date "2018.10.27"]
[Round "8"]
[White "Dao, Minh Nhat"]
[Black "Stoyanov, Tsvetan"]
[Result "1/2-1/2"]
[ECO "A45"]
[WhiteElo "1956"]
[BlackElo "2340"]
[Annotator "NA"]
[PlyCount "110"]
[EventDate "2018.10.20"]
[EventType "swiss"]
[EventCountry "GRE"]
[SourceTitle "playchess.com"]
[Source "ChessBase"]
[SourceQuality "1"]
[TimeControl "40/5400+30:1800+30"]

1. d4 {[%emt 0:00:00]} Nf6 {[%emt 0:00:00]} 2. Bf4 {[%emt 0:00:32]} c5 {[%emt 0:00:00]} 3. e3 {[%emt 0:00:13]} cxd4 {[%emt 0:00:07]} 4. exd4 {[%emt 0:00:22]} Qb6 {[%emt 0:00:11]} 5. Nc3 {[%emt 0:00:36]} a6 {[%emt 0:00:21]} 6. Rb1 {[%emt 0:03:57]} d5 {[%emt 0:02:06]} 7. Nf3 {[%emt 0:00:55]} e6 {[%emt 0:16:53]} 8. Bd3 {[%emt 0:02:53]} Nc6 {[%emt 0:03:20]} 9. a3 {[%emt 0:00:49]} Bd7 {[%emt 0:07:17]} 10. Ne2 {[%emt 0:01:06]} Nh5 {[%emt 0:03:29]} 11. Be3 {[%emt 0:02:18]} Qc7 {[%emt 0:04:10]} 12. c3 {[%emt 0:14:13]} Bd6 {[%emt 0:01:38]} 13. Ng3 {[%emt 0:03:24]} Nf6 {[%emt 0:05:15]} 14. Qe2 {[%emt 0:07:39]} h6 {[%emt 0:02:47]} 15. Nd2 {[%emt 0:01:53]} O-O {[%emt 0:03:08]} 16. O-O {[%emt 0:07:37]} e5 {[%emt 0:02:57]} 17. dxe5 {[%emt 0:02:18]} Nxe5 {[%emt 0:06:52]} 18. Rfe1 {[%emt 0:02:04]} Neg4 {[%emt 0:07:25]} 19. Ndf1 {[%emt 0:02:57]} Rae8 {[%emt 0:03:45]} 20. Qd2 {[%emt 0:17:48]} Nxe3 {[%emt 0:08:49]} 21. Nxe3 {[%emt 0:00:05]} Bf4 {[%emt 0:00:26]} 22. Ngf1 {[%emt 0:06:44]} g6 {[%emt 0:09:18]} 23. Qc2 {[%emt 0:01:51]} Kg7 {[%emt 0:01:41]} 24. Rbd1 {[%emt 0:01:44]} Bc6 {[%emt 0:00:54]} 25. Be2 {[%emt 0:01:00]} Qa5 {[%emt 0:04:17]} 26. Bf3 {[%emt 0:08:10]} Be5 {[%emt 0:02:10]} 27. Qc1 {[%emt 0:01:31]} Bb8 {[%emt 0:02:02]} 28. Nc2 {[%emt 0:01:08]} Ba4 {[%emt 0:00:46]} 29. Rxe8 {[%emt 0:04:43]} Rxe8 {[%emt 0:00:01]} 30. Nfe3 {[%emt 0:01:03]} Re5 {[%emt 0:01:21]} 31. g3 {[%emt 0:01:19]} Ba7 {[%emt 0:00:28]} 32. Re1 {[%emt 0:01:43]} Ne4 {[%emt 0:00:39]} 33. Nd4 {[%emt 0:00:31]} h5 {[%emt 0:00:50]} 34. Kg2 {[%emt 0:01:00]} Bd7 {[%emt 0:00:35]} 35. h4 {[%emt 0:00:35]} f5 {[%emt 0:00:43]} 36. Rd1 {[%emt 0:00:44]} Ba4 {[%emt 0:00:38]} 37. b3 {[%emt 0:00:17]} Be8 {[%emt 0:00:33]} 38. c4 {[%emt 0:00:22]} Qc5 {[%emt 0:00:33]} 39. b4 {[%emt 0:00:34]} Qc8 {[%emt 0:00:21]} 40. Nxd5 {[%emt 0:00:00]} Bf7 {[%emt 0:00:00]} 41. Ne3 {[%emt 0:01:02]} Bb8 {[%emt 0:12:23]} 42. Nd5 {[%emt 0:02:41]} Bxd5 {[%emt 0:09:07]} 43. cxd5 {[%emt 0:00:05]} Qxc1 {[%emt 0:00:26]} 44. Rxc1 {[%emt 0:00:03]} Rxd5 {[%emt 0:00:05]} 45. Rc8 {[%emt 0:01:05]} Bxg3 {[%emt 0:03:57]} 46. Nxf5+ {[%emt 0:01:24]} gxf5 {[%emt 0:00:11]} 47. Bxe4 {[%emt 0:00:06]} fxe4 {[%emt 0:00:21]} 48. Kxg3 {[%emt 0:00:10]} Rf5 {[%emt 0:03:18]} 49. Rc7+ {[%emt 0:01:42]} Kg6 {[%emt 0:00:12]} 50. a4 {[%emt 0:00:36]} Rf3+ {[%emt 0:01:04]} 51. Kg2 {[%emt 0:00:06]} b5 {[%emt 0:01:06]} 52. Rc6+ {[%emt 0:00:25]} Rf6 {[%emt 0:00:10]} 53. axb5 {[%emt 0:01:01]} axb5 {[%emt 0:00:01]} 54. Rc5 {[%emt 0:01:06]} Rf5 {[%emt 0:00:35]} 55. Rc6+ {[%emt 0:00:35]} Rf6 {[%emt 0:00:30]} 1/2-1/2

[Event "WYCC 2018 O14"]
[Site "Halkidiki"]
[Date "2018.10.27"]
[Round "8"]
[White "Horobrijs, Daniils"]
[Black "Risteski, Emil"]
[Result "0-1"]
[ECO "B92"]
[WhiteElo "1918"]
[BlackElo "2120"]
[Annotator "NA"]
[PlyCount "76"]
[EventDate "2018.10.20"]
[EventType "swiss"]
[EventCountry "GRE"]
[SourceTitle "playchess.com"]
[Source "ChessBase"]
[SourceQuality "1"]
[TimeControl "40/5400+30:1800+30"]

1. e4 {[%emt 0:00:00]} c5 {[%emt 0:00:00]} 2. Nf3 {[%emt 0:00:15]} d6 {[%emt 0:00:00]} 3. d4 {[%emt 0:00:05]} cxd4 {[%emt 0:00:00]} 4. Nxd4 {[%emt 0:00:03]} Nf6 {[%emt 0:00:00]} 5. Nc3 {[%emt 0:00:04]} a6 {[%emt 0:00:00]} 6. Be2 {[%emt 0:00:11]} e5 {[%emt 0:00:04]} 7. Nb3 {[%emt 0:00:25]} Be7 {[%emt 0:00:05]} 8. O-O {[%emt 0:00:05]} Be6 {[%emt 0:00:07]} 9. Be3 {[%emt 0:00:29]} O-O {[%emt 0:00:06]} 10. f4 {[%emt 0:00:14]} exf4 {[%emt 0:00:06]} 11. Bxf4 {[%emt 0:00:09]} Nc6 {[%emt 0:00:06]} 12. Qe1 {[%emt 0:11:56]} Ne5 {[%emt 0:04:51]} 13. Qg3 {[%emt 0:05:21]} Ng6 {[%emt 0:02:56]} 14. Be3 {[%emt 0:17:32]} b5 {[%emt 0:02:56]} 15. a3 {[%emt 0:01:36]} Rc8 {[%emt 0:02:15]} 16. Nd4 {[%emt 0:05:26]} Re8 {[%emt 0:21:14]} 17. Bd3 {[%emt 0:09:10]} Nd7 {[%emt 0:06:15]} 18. Nf5 {[%emt 0:07:46]} Nde5 {[%emt 0:04:24]} 19. Nxe7+ {[%emt 0:02:29]} Qxe7 {[%emt 0:01:57]} 20. Rae1 {[%emt 0:06:37]} Qb7 {[%emt 0:05:24]} 21. Ne2 {[%emt 0:13:30]} a5 {[%emt 0:07:12]} 22. Nd4 {[%emt 0:03:32]} b4 {[%emt 0:01:41]} 23. Nf5 {[%emt 0:03:26]} Red8 {[%emt 0:01:33]} 24. h4 {[%emt 0:05:14]} h5 {[%emt 0:09:06]} 25. Qg5 {[%emt 0:00:57]} b3 {[%emt 0:00:57]} 26. Nxg7 {[%emt 0:01:47]} Kxg7 {[%emt 0:02:03]} 27. Qh6+ {[%emt 0:02:46]} Kg8 {[%emt 0:00:05]} 28. Bg5 {[%emt 0:00:27]} f6 {[%emt 0:20:05]} 29. Rxf6 {[%emt 0:01:20]} Bf7 {[%emt 0:00:25]} 30. Ref1 {[%emt 0:01:27]} Rd7 {[%emt 0:02:33]} 31. Qxh5 {[%emt 0:00:32]} bxc2 {[%emt 0:01:16]} 32. Bxc2 {[%emt 0:00:36]} Rxc2 {[%emt 0:01:31]} 33. Qh6 {[%emt 0:00:30]} Qxe4 {[%emt 0:01:30]} 34. R6f2 {[%emt 0:00:29]} Rxf2 {[%emt 0:00:48]} 35. Rxf2 {[%emt 0:00:06]} Ng4 {[%emt 0:00:38]} 36. Qh5 {[%emt 0:00:36]} Nxf2 {[%emt 0:00:08]} 37. Kxf2 {[%emt 0:00:38]} Bd5 {[%emt 0:00:32]} 38. b4 {[%emt 0:00:42]} Rf7+ {b5} 0-1

[Event "WYCC 2018 O14"]
[Site "Halkidiki"]
[Date "2018.10.27"]
[Round "8"]
[White "Ibarra, Juan Martin"]
[Black "Rasti, Arvin"]
[Result "1-0"]
[ECO "B13"]
[WhiteElo "1899"]
[BlackElo "2064"]
[Annotator "NA"]
[PlyCount "107"]
[EventDate "2018.10.20"]
[EventType "swiss"]
[EventCountry "GRE"]
[SourceTitle "playchess.com"]
[Source "ChessBase"]
[SourceQuality "1"]
[TimeControl "40/5400+30:1800+30"]

1. e4 {[%emt 0:00:00]} c6 {[%emt 0:00:00]} 2. d4 {[%emt 0:00:59]} d5 {[%emt 0:00:00]} 3. exd5 {[%emt 0:01:22]} cxd5 {[%emt 0:00:14]} 4. Bd3 {[%emt 0:00:04]} Nc6 {[%emt 0:00:16]} 5. Nf3 {[%emt 0:00:14]} Bg4 {[%emt 0:01:29]} 6. c3 {[%emt 0:02:01]} e6 {[%emt 0:01:47]} 7. Bf4 {[%emt 0:00:07]} Bd6 {[%emt 0:00:39]} 8. Bxd6 {[%emt 0:00:05]} Qxd6 {[%emt 0:00:12]} 9. O-O {[%emt 0:00:24]} Nf6 {[%emt 0:01:23]} 10. Nbd2 {[%emt 0:05:24]} O-O {[%emt 0:00:52]} 11. Re1 {[%emt 0:00:55]} Rfe8 {[%emt 0:02:35]} 12. h3 {[%emt 0:01:49]} Bf5 {[%emt 0:00:58]} 13. Ne5 {[%emt 0:14:24]} Nd7 {[%emt 0:02:25]} 14. Bxf5 exf5 {[%emt 0:00:17]} 15. Nxd7 {[%emt 0:07:22]} Qxd7 {[%emt 0:00:27]} 16. Qf3 {[%emt 0:02:56]} g6 {[%emt 0:09:54]} 17. Nb3 {[%emt 0:07:32]} b6 {[%emt 0:02:55]} 18. a4 {[%emt 0:10:01]} Re6 {[%emt 0:08:33]} 19. Rxe6 {[%emt 0:02:16]} Qxe6 {[%emt 0:00:41]} 20. Qe3 {[%emt 0:01:01]} Qxe3 {[%emt 0:05:00]} 21. fxe3 {[%emt 0:00:05]} Re8 {[%emt 0:00:29]} 22. Kf2 {[%emt 0:00:28]} a5 {[%emt 0:00:54]} 23. Nd2 {[%emt 0:00:18]} h5 24. Ra3 {[%emt 0:06:08]} Rb8 {[%emt 0:09:46]} 25. Rb3 {[%emt 0:00:37]} Na7 {[%emt 0:00:29]} 26. c4 {[%emt 0:02:14]} dxc4 {[%emt 0:00:29]} 27. Nxc4 {[%emt 0:00:06]} Rc8 {[%emt 0:00:34]} 28. Rc3 Rb8 29. b3 {[%emt 0:16:13]} Nc6 {[%emt 0:03:50]} 30. Kf3 {[%emt 0:03:32]} Nb4 {[%emt 0:03:08]} 31. Ne5 {[%emt 0:02:23]} g5 {[%emt 0:02:18]} 32. Nc6 {[%emt 0:01:55]} g4+ {[%emt 0:01:55]} 33. Kg3 {[%emt 0:00:07]} Re8 {[%emt 0:01:41]} 34. Nxb4 {[%emt 0:00:09]} axb4 {[%emt 0:00:03]} 35. Rd3 {[%emt 0:00:04]} Kg7 {[%emt 0:01:01]} 36. d5 {[%emt 0:02:41]} Kf6 {[%emt 0:02:44]} 37. d6 {[%emt 0:00:53]} Ke5 {[%emt 0:04:33]} 38. d7 {[%emt 0:00:30]} Rd8 {[%emt 0:00:07]} 39. hxg4 {[%emt 0:05:35]} fxg4 {[%emt 0:05:17]} 40. Kh4 {[%emt 0:00:00]} Ke4 {[%emt 0:00:00]} 41. Rd6 {[%emt 0:00:37]} Kxe3 {[%emt 0:03:00]} 42. Kxh5 {[%emt 0:00:13]} f5 {[%emt 0:00:26]} 43. Kg6 {[%emt 0:01:05]} f4 {[%emt 0:00:19]} 44. Kf7 {[%emt 0:00:12]} Kf2 {[%emt 0:00:59]} 45. Rd2+ {[%emt 0:01:46]} Ke3 {[%emt 0:00:31]} 46. Ke7 {[%emt 0:00:18]} Kxd2 {[%emt 0:03:45]} 47. Kxd8 {[%emt 0:00:06]} Ke3 {[%emt 0:00:33]} 48. Kc7 {[%emt 0:00:08]} Kf2 {[%emt 0:00:04]} 49. d8=Q {[%emt 0:00:13]} Kxg2 {[%emt 0:00:11]} 50. Qg5 {[%emt 0:00:18]} Kf3 {[%emt 0:00:16]} 51. Kxb6 {[%emt 0:00:09]} g3 {[%emt 0:00:09]} 52. a5 {[%emt 0:00:17]} g2 {[%emt 0:00:08]} 53. a6 {[%emt 0:00:04]} Kf2 {[%emt 0:01:16]} 54. Qxf4+ {[%emt 0:00:05]} 1-0

[Event "WYCC 2018 O14"]
[Site "Halkidiki"]
[Date "2018.10.27"]
[Round "8"]
[White "Kouvidis, Ioannis"]
[Black "Antonica, Dragos-Andrei"]
[Result "1/2-1/2"]
[ECO "C17"]
[WhiteElo "1896"]
[BlackElo "2061"]
[Annotator "NA"]
[PlyCount "77"]
[EventDate "2018.10.20"]
[EventType "swiss"]
[EventCountry "GRE"]
[SourceTitle "playchess.com"]
[Source "ChessBase"]
[SourceQuality "1"]
[TimeControl "40/5400+30:1800+30"]

1. e4 {[%emt 0:00:00]} e6 {[%emt 0:00:00]} 2. d4 {[%emt 0:00:00]} d5 {[%emt 0:00:00]} 3. Nc3 {[%emt 0:00:00]} Bb4 {[%emt 0:00:00]} 4. e5 {[%emt 0:00:00]} c5 {[%emt 0:00:41]} 5. Bd2 {[%emt 0:00:02]} Ne7 {[%emt 0:06:57]} 6. a3 {[%emt 0:00:37]} Bxc3 {[%emt 0:02:07]} 7. Bxc3 {[%emt 0:00:03]} Nbc6 {[%emt 0:03:52]} 8. Nf3 {[%emt 0:01:35]} cxd4 {[%emt 0:09:04]} 9. Nxd4 {[%emt 0:00:10]} Ng6 {[%emt 0:03:48]} 10. Nxc6 bxc6 {[%emt 0:01:29]} 11. Qd4 {[%emt 0:19:13]} Qb6 {[%emt 0:10:39]} 12. b4 {[%emt 0:15:10]} Ba6 {[%emt 0:02:06]} 13. Bd3 {[%emt 0:01:57]} Qxd4 {[%emt 0:15:27]} 14. Bxd4 {[%emt 0:00:03]} Bxd3 {[%emt 0:00:02]} 15. cxd3 {[%emt 0:00:16]} a5 {[%emt 0:00:01]} 16. Kd2 {[%emt 0:03:57]} axb4 {[%emt 0:03:28]} 17. axb4 {[%emt 0:00:15]} Kd7 {[%emt 0:00:16]} 18. Ra5 {[%emt 0:04:42]} Rhc8 {[%emt 0:12:33]} 19. Rha1 {[%emt 0:07:44]} Rxa5 {[%emt 0:11:33]} 20. Rxa5 {[%emt 0:01:59]} Rc7 {[%emt 0:03:07]} 21. g3 {[%emt 0:03:23]} Rb7 {[%emt 0:03:40]} 22. Ra4 {[%emt 0:01:23]} Ne7 {[%emt 0:02:01]} 23. Bc5 {[%emt 0:01:11]} Nc8 {[%emt 0:00:29]} 24. f4 {[%emt 0:05:57]} Kc7 {[%emt 0:01:50]} 25. Ra6 {[%emt 0:04:43]} Rb8 {[%emt 0:01:35]} 26. Kc3 {[%emt 0:03:50]} Kb7 {[%emt 0:01:06]} 27. Ra5 {[%emt 0:00:45]} Ra8 {[%emt 0:01:17]} 28. Rxa8 {[%emt 0:01:44]} Kxa8 {[%emt 0:00:02]} 29. b5 {[%emt 0:01:52]} Kb7 {[%emt 0:01:31]} 30. Kb4 {[%emt 0:00:24]} Nb6 {[%emt 0:01:26]} 31. bxc6+ {[%emt 0:02:07]} Kxc6 {[%emt 0:00:02]} 32. Bxb6 {[%emt 0:00:09]} Kxb6 {[%emt 0:00:02]} 33. d4 {[%emt 0:00:45]} h6 {[%emt 0:02:26]} 34. g4 {[%emt 0:00:46]} g6 {[%emt 0:01:44]} 35. h4 {[%emt 0:00:23]} h5 {[%emt 0:00:12]} 36. g5 {[%emt 0:00:15]} Kc6 {[%emt 0:00:17]} 37. Ka5 {[%emt 0:00:45]} Kc7 {[%emt 0:00:11]} 38. Ka6 {[%emt 0:01:47]} Kc6 {[%emt 0:00:12]} 39. Ka5 {[%emt 0:00:03]} 1/2-1/2